Workbook

Sheet Buget pentru 18 perioade
B1: buget firmă
G2: DATA DE ÎNCEPUT | H2: 2011-01-01 | I2: PERIOADĂ (ÎN ZILE) | K2: 14 | L2: DATA DE SFÂRŞIT | M2: =TEXT(T5,"dd.mm.yyyy") -> 26.08.2012
C5: =UPPER(TEXT(H2,"dd-mmm")) -> 01-IAN | D5: =UPPER(TEXT(C5+IntervalZilnic,"dd-mmm")) -> 15-IAN | E5: 29-IAN | F5: 12-FEB | G5: 26-FEB | H5: 11-MAR | I5: 25-MAR | J5: 08-APR | K5: 22-APR | L5: 06-MAI | M5: 20-MAI | N5: 03-IUN | O5: 17-IUN | P5: 01-IUL | Q5: 15-IUL | R5: 29-IUL | S5: 12-AUG | T5: 26-AUG | U5: TOTAL | V5: TENDINŢĂ
B6: VENIT NET | C6: =TabelVenituri[[#Totals],[Săptămâna 1]]-TabelCheltuieli[[#Totals],[Săptămâna 1]] -> 1,750.00 lei | D6: =TabelVenituri[[#Totals],[Săptămâna 2]]-TabelCheltuieli[[#Totals],[Săptămâna 2]] -> 2,236.00 lei | E6: =TabelVenituri[[#Totals],[Săptămâna 3]]-TabelCheltuieli[[#Totals],[Săptămâna 3]] -> 1,442.00 lei | F6: =TabelVenituri[[#Totals],[Săptămâna 4]]-TabelCheltuieli[[#Totals],[Săptămâna 4]] -> 2,253.00 lei | G6: =TabelVenituri[[#Totals],[Săptămâna 5]]-TabelCheltuieli[[#Totals],[Săptămâna 5]] -> 1,533.00 lei | H6: =TabelVenituri[[#Totals],[Săptămâna 6]]-TabelCheltuieli[[#Totals],[Săptămâna 6]] -> 1,086.00 lei | I6: =TabelVenituri[[#Totals],[Săptămâna 7]]-TabelCheltuieli[[#Totals],[Săptămâna 7]] -> 1,594.00 lei | J6: =TabelVenituri[[#Totals],[Săptămâna 8]]-TabelCheltuieli[[#Totals],[Săptămâna 8]] -> 0 | K6: =TabelVenituri[[#Totals],[Săptămâna 9]]-TabelCheltuieli[[#Totals],[Săptămâna 9]] -> 0 | L6: =TabelVenituri[[#Totals],[Săptămâna 10]]-TabelCheltuieli[[#Totals],[Săptămâna 10]] -> 0 | M6: =TabelVenituri[[#Totals],[Săptămâna 11]]-TabelCheltuieli[[#Totals],[Săptămâna 11]] -> 0 | N6: =TabelVenituri[[#Totals],[Săptămâna 12]]-TabelCheltuieli[[#Totals],[Săptămâna 12]] -> 0 | O6: =TabelVenituri[[#Totals],[Săptămâna 13]]-TabelCheltuieli[[#Totals],[Săptămâna 13]] -> 0 | P6: =TabelVenituri[[#Totals],[Săptămâna 14]]-TabelCheltuieli[[#Totals],[Săptămâna 14]] -> 0 | Q6: =TabelVenituri[[#Totals],[Săptămâna 15]]-TabelCheltuieli[[#Totals],[Săptămâna 15]] -> 0 | R6: =TabelVenituri[[#Totals],[Săptămâna 16]]-TabelCheltuieli[[#Totals],[Săptămâna 16]] -> 0 | S6: =TabelVenituri[[#Totals],[Săptămâna 17]]-TabelCheltuieli[[#Totals],[Săptămâna 17]] -> 0 | T6: =TabelVenituri[[#Totals],[Săptămâna 18]]-TabelCheltuieli[[#Totals],[Săptămâna 18]] -> 0 | U6: =TabelVenituri[[#Totals],[Total]]-TabelCheltuieli[[#Totals],[Total]] -> 11,894.00 lei
A8: venit
B9: ARTICOL VENIT 1 | C9: 3,000.00 lei | D9: 3,500.00 lei | E9: 2,978.00 lei | F9: 3,384.00 lei | G9: 2,858.00 lei | H9: 2,809.00 lei | I9: 3,220.00 lei | U9: =SUM(TabelVenituri[[#This Row],[Săptămâna 1]:[Săptămâna 18]]) -> 21,749.00 lei
B10: ARTICOL VENIT 2 | C10: 1,150.00 | D10: 1,200.00 | E10: 1,144.00 | F10: 1,400.00 | G10: 1,358.00 | H10: 1,154.00 | I10: 1,245.00 | U10: =SUM(TabelVenituri[[#This Row],[Săptămâna 1]:[Săptămâna 18]]) -> 8,651.00
B11: ARTICOL VENIT 3 | C11: 300.00 | D11: 350.00 | E11: 392.00 | F11: 326.00 | G11: 381.00 | H11: 364.00 | I11: 315.00 | U11: =SUM(TabelVenituri[[#This Row],[Săptămâna 1]:[Săptămâna 18]]) -> 2,428.00
B12: TOTAL VENIT | C12: =SUBTOTAL(109,TabelVenituri[Săptămâna 1]) -> 4,450.00 lei | D12: =SUBTOTAL(109,TabelVenituri[Săptămâna 2]) -> 5,050.00 lei | E12: =SUBTOTAL(109,TabelVenituri[Săptămâna 3]) -> 4,514.00 lei | F12: =SUBTOTAL(109,TabelVenituri[Săptămâna 4]) -> 5,110.00 lei | G12: =SUBTOTAL(109,TabelVenituri[Săptămâna 5]) -> 4,597.00 lei | H12: =SUBTOTAL(109,TabelVenituri[Săptămâna 6]) -> 4,327.00 lei | I12: =SUBTOTAL(109,TabelVenituri[Săptămâna 7]) -> 4,780.00 lei | J12: =SUBTOTAL(109,TabelVenituri[Săptămâna 8]) -> 0 | K12: =SUBTOTAL(109,TabelVenituri[Săptămâna 9]) -> 0 | L12: =SUBTOTAL(109,TabelVenituri[Săptămâna 10]) -> 0 | M12: =SUBTOTAL(109,TabelVenituri[Săptămâna 11]) -> 0 | N12: =SUBTOTAL(109,TabelVenituri[Săptămâna 12]) -> 0 | O12: =SUBTOTAL(109,TabelVenituri[Săptămâna 13]) -> 0 | P12: =SUBTOTAL(109,TabelVenituri[Săptămâna 14]) -> 0 | Q12: =SUBTOTAL(109,TabelVenituri[Săptămâna 15]) -> 0 | R12: =SUBTOTAL(109,TabelVenituri[Săptămâna 16]) -> 0 | S12: =SUBTOTAL(109,TabelVenituri[Săptămâna 17]) -> 0 | T12: =SUBTOTAL(109,TabelVenituri[Săptămâna 18]) -> 0 | U12: =SUBTOTAL(109,TabelVenituri[Total]) -> 32,828.00 lei
A14: cheltuieli
B15: SALARII | C15: 1,500.00 lei | D15: 1,577.00 lei | E15: 1,823.00 lei | F15: 1,529.00 lei | G15: 1,759.00 lei | H15: 1,947.00 lei | I15: 1,875.00 lei | U15: =SUM(TabelCheltuieli[[#This Row],[Săptămâna 1]:[Săptămâna 18]]) -> 12,010.00 lei
B16: CHIRIE | C16: 1,000.00 | D16: 1,000.00 | E16: 1,000.00 | F16: 1,000.00 | G16: 1,000.00 | H16: 1,000.00 | I16: 1,000.00 | U16: =SUM(TabelCheltuieli[[#This Row],[Săptămâna 1]:[Săptămâna 18]]) -> 7,000.00
B17: ELECTRICITATE | C17: 40.00 | D17: 43.00 | E17: 40.00 | F17: 42.00 | G17: 45.00 | H17: 40.00 | I17: 42.00 | U17: =SUM(TabelCheltuieli[[#This Row],[Săptămâna 1]:[Săptămâna 18]]) -> 292.00
B18: TELEFON | C18: 12.00 | D18: 11.00 | E18: 13.00 | F18: 14.00 | G18: 11.00 | H18: 15.00 | I18: 15.00 | U18: =SUM(TabelCheltuieli[[#This Row],[Săptămâna 1]:[Săptămâna 18]]) -> 91.00
B19: INTERNET | C19: 15.00 | D19: 15.00 | E19: 15.00 | F19: 15.00 | G19: 15.00 | H19: 15.00 | I19: 15.00 | U19: =SUM(TabelCheltuieli[[#This Row],[Săptămâna 1]:[Săptămâna 18]]) -> 105.00
B20: APĂ | C20: 11.00 | D20: 10.00 | E20: 13.00 | F20: 10.00 | G20: 13.00 | H20: 10.00 | I20: 12.00 | U20: =SUM(TabelCheltuieli[[#This Row],[Săptămâna 1]:[Săptămâna 18]]) -> 79.00
B21: GAZE | C21: 23.00 | D21: 27.00 | E21: 26.00 | F21: 27.00 | G21: 22.00 | H21: 29.00 | I21: 21.00 | U21: =SUM(TabelCheltuieli[[#This Row],[Săptămâna 1]:[Săptămâna 18]]) -> 175.00
B22: SALUBRIZARE | C22: 4.00 | D22: 4.00 | E22: 4.00 | F22: 4.00 | G22: 4.00 | H22: 4.00 | I22: 4.00 | U22: =SUM(TabelCheltuieli[[#This Row],[Săptămâna 1]:[Săptămâna 18]]) -> 28.00
B23: CABLU TV | C23: 10.00 | D23: 10.00 | E23: 10.00 | F23: 10.00 | G23: 10.00 | H23: 10.00 | I23: 10.00 | U23: =SUM(TabelCheltuieli[[#This Row],[Săptămâna 1]:[Săptămâna 18]]) -> 70.00
B24: MATERIALE DE BIROU | C24: 25.00 | D24: 57.00 | E24: 68.00 | F24: 146.00 | G24: 125.00 | H24: 111.00 | I24: 132.00 | U24: =SUM(TabelCheltuieli[[#This Row],[Săptămâna 1]:[Săptămâna 18]]) -> 664.00
B25: ASIGURARE | C25: 60.00 | D25: 60.00 | E25: 60.00 | F25: 60.00 | G25: 60.00 | H25: 60.00 | I25: 60.00 | U25: =SUM(TabelCheltuieli[[#This Row],[Săptămâna 1]:[Săptămâna 18]]) -> 420.00
B26: TOTAL CHELTUIELI | C26: =SUBTOTAL(109,TabelCheltuieli[Săptămâna 1]) -> 2,700.00 lei | D26: =SUBTOTAL(109,TabelCheltuieli[Săptămâna 2]) -> 2,814.00 lei | E26: =SUBTOTAL(109,TabelCheltuieli[Săptămâna 3]) -> 3,072.00 lei | F26: =SUBTOTAL(109,TabelCheltuieli[Săptămâna 4]) -> 2,857.00 lei | G26: =SUBTOTAL(109,TabelCheltuieli[Săptămâna 5]) -> 3,064.00 lei | H26: =SUBTOTAL(109,TabelCheltuieli[Săptămâna 6]) -> 3,241.00 lei | I26: =SUBTOTAL(109,TabelCheltuieli[Săptămâna 7]) -> 3,186.00 lei | J26: =SUBTOTAL(109,TabelCheltuieli[Săptămâna 8]) -> 0 | K26: =SUBTOTAL(109,TabelCheltuieli[Săptămâna 9]) -> 0 | L26: =SUBTOTAL(109,TabelCheltuieli[Săptămâna 10]) -> 0 | M26: =SUBTOTAL(109,TabelCheltuieli[Săptămâna 11]) -> 0 | N26: =SUBTOTAL(109,TabelCheltuieli[Săptămâna 12]) -> 0 | O26: =SUBTOTAL(109,TabelCheltuieli[Săptămâna 13]) -> 0 | P26: =SUBTOTAL(109,TabelCheltuieli[Săptămâna 14]) -> 0 | Q26: =SUBTOTAL(109,TabelCheltuieli[Săptămâna 15]) -> 0 | R26: =SUBTOTAL(109,TabelCheltuieli[Săptămâna 16]) -> 0 | S26: =SUBTOTAL(109,TabelCheltuieli[Săptămâna 17]) -> 0 | T26: =SUBTOTAL(109,TabelCheltuieli[Săptămâna 18]) -> 0 | U26: =SUBTOTAL(109,TabelCheltuieli[Total]) -> 20,934.00 lei
